bitfinex-derivatives/quotes_ETHF0:USTF0_20250520
["timestamp","ask_amount","ask_price","bid_price","bid_amount"]
[1747763161980,0.80023,2498.3,2498.2,15.5838]
[1747763162178,0.80023,2498.3,2498.2,3.2078]
[1747763162476,2.80163,2498.3,2498.2,3.2078]
[1747763162675,0.80023,2498.3,2498.2,5.72875]
[1747763162879,0.80023,2498.3,2498.2,4.92849]
[1747763163075,2.80163,2498.3,2498.2,4.92849]
[1747763163272,2.80163,2498.3,2498.2,3.2078]
[1747763164183,4.00201,2498.3,2497.9,3.2078]
[1747763164479,0.80029,2498.1,2498.0,14.09569]
[1747763164684,0.80033,2498.0,2497.9,3.2078]
[1747763164877,0.80039,2497.8,2497.7,12.375]
[1747763165074,0.80042,2497.7,2497.6,3.2078]
[1747763165279,0.80042,2497.7,2497.6,4.00822]
[1747763165479,2.8023,2497.7,2497.6,4.00822]
[1747763165786,0.80042,2497.7,2497.6,4.92849]
[1747763166574,2.8023,2497.7,2497.6,4.92849]
[1747763167470,2.8023,2497.7,2497.6,3.2078]
[1747763168481,2.8023,2497.7,2497.6,4.00825]
[1747763169378,2.8023,2497.7,2497.6,5.72894]
[1747763169578,2.8023,2497.7,2497.6,7.11534]
[1747763169780,0.80042,2497.7,2497.6,7.11534]
[1747763169983,0.80034,2498.0,2497.9,0.80034]
[1747763170385,2.80198,2498.0,2497.9,0.80034]
[1747763170888,2.00164,2498.0,2497.6,4.5942]
[1747763171081,0.80036,2497.9,2497.8,1.72069]
[1747763171282,0.80042,2497.7,2497.6,16.38324]
[1747763171787,0.80042,2497.7,2497.6,18.10393]
[1747763172583,10.5092,2498.4,2497.6,26.3057]
[1747763172787,0.6476,2498.8,2498.7,0.8001]
[1747763173081,0.80007,2498.8,2498.7,3.2078]
[1747763173286,0.6589,2499.0,2498.9,0.80004]
[1747763173478,1.99982,2499.3,2498.8,1.3626]
[1747763173678,1.99986,2499.2,2498.8,1.3626]
[1747763173880,0.80004,2498.9,2498.8,1.3626]
[1747763174080,2.00092,2498.9,2498.8,3.08329]
[1747763174286,2.80096,2498.9,2498.8,3.08329]
[1747763174481,2.00092,2498.9,2498.7,15.5828]
[1747763174675,6.51406,2499.4,2498.7,18.66609]
[1747763174881,0.80007,2498.8,2498.7,15.5808]
[1747763175088,0.80007,2498.8,2498.7,12.373]
[1747763175288,0.80007,2498.8,2498.7,1.72069]
[1747763175487,0.80013,2498.6,2498.5,1.36860516]
[1747763175789,0.80013,2498.6,2498.5,13.74160516]
[1747763175987,0.80013,2498.6,2498.5,3.08929516]
[1747763176179,0.80013,2498.6,2498.5,0.00600516]
[1747763176379,0.80013,2498.6,2498.5,1.72669516]
[1747763176587,0.80013,2498.6,2498.5,0.00600516]
[1747763177386,5.80013,2498.6,2498.5,0.00600516]
[1747763177578,5.80013,2498.6,2498.5,1.72069516]
[1747763177885,0.80026,2498.2,2498.1,0.21600426]
[1747763178092,4.00806,2498.2,2498.1,0.21600426]
[1747763178397,0.80036,2497.9,2497.8,4.26e-06]
[1747763178686,6.00988,2497.9,2497.8,4.26e-06]
[1747763178889,11.00988,2497.9,2497.8,4.26e-06]
[1747763179288,6.00988,2497.9,2497.8,4.26e-06]
[1747763179888,0.80042,2497.7,2497.6,0.00600516]
[1747763180493,7.8023,2497.7,2497.6,5.16e-06]
[1747763180693,2.8023,2497.7,2497.6,5.16e-06]
[1747763187096,7.8023,2497.7,2497.6,5.16e-06]
[1747763187598,2.8023,2497.7,2497.6,5.16e-06]
[1747763187900,7.8023,2497.7,2497.6,5.16e-06]
[1747763188996,9.4100787,2497.7,2497.6,5.16e-06]
[1747763189997,9.0832,2497.7,2497.6,5.16e-06]
[1747763191189,4.0832,2497.7,2497.6,5.16e-06]
[1747763192088,0.80052,2497.4,2497.3,2.0581]
[1747763194699,0.80052,2497.4,2497.3,2.85865]
[1747763194996,0.80052,2497.4,2497.3,2.0581]
[1747763195386,2.80264,2497.4,2497.3,2.0581]
[1747763195987,2.80264,2497.4,2497.3,2.85865]
[1747763196194,2.80264,2497.4,2497.3,2.0581]
[1747763198697,0.80052,2497.4,2497.3,2.0581]
[1747763201301,0.80052,2497.4,2497.3,2.85865]
[1747763201511,0.00806398,2497.6,2497.5,0.80049]
[1747763201892,0.00806398,2497.6,2497.5,4.00829]
[1747763202092,0.00806398,2497.6,2497.5,5.35869]
[1747763202995,0.80851398,2497.6,2497.5,5.35869]
[1747763204502,0.80851398,2497.6,2497.5,4.5582]
[1747763204799,0.80851398,2497.6,2497.5,17.0192]
[1747763205801,0.00806398,2497.6,2497.5,17.81969]
[1747763206704,0.00806398,2497.6,2497.5,18.13992365]
[1747763207001,0.80851398,2497.6,2497.5,17.33943365]
[1747763207394,2.81047398,2497.6,2497.5,4.87843365]
[1747763209601,0.00806398,2497.6,2497.5,5.67892365]
[1747763209807,0.00806398,2497.6,2497.5,10.67892365]
[1747763211103,0.00806398,2497.6,2497.5,11.27893707]
[1747763211803,0.00806398,2497.6,2497.5,10.96700745]
[1747763212400,0.0059642,2498.1,2498.0,0.80033]
[1747763212607,0.0059642,2498.1,2498.0,16.46813]
[1747763213410,0.0059642,2498.1,2498.0,17.82753]
[1747763213704,15.6668,2499.2,2498.2,0.80024]
[1747763214009,0.80013,2498.6,2498.5,3.2078]
[1747763214510,0.8002,2498.4,2498.3,1.3594]
[1747763214910,2.80152,2498.4,2498.3,1.3594]
[1747763216011,0.80026,2498.2,2498.1,0.00600516]
[1747763216513,2.80174,2498.2,2498.1,0.00600516]
[1747763219516,2.00148,2498.2,2498.1,0.00600516]
[1747763219704,2.80174,2498.2,2498.1,0.00600516]
[1747763221214,8.66148,2498.2,2497.9,0.73815]
[1747763221413,6.66,2497.6,2497.3,0.43224671]
[1747763221615,0.80055,2497.3,2497.2,0.43224671]
[1747763221806,41.60055,2497.3,2497.2,0.43224671]
[1747763222007,49.92255,2497.3,2497.2,0.43224671]
[1747763222808,4.12255,2497.3,2497.2,0.43224671]
[1747763223205,3.322,2497.3,2497.1,2.1951]
[1747763223403,4.12257,2497.3,2497.2,1.3945]
[1747763225715,4.12257,2497.3,2497.2,2.19508]
[1747763225919,2.0022,2497.3,2497.2,2.19508]
[1747763226415,2.80275,2497.3,2497.2,1.3945]
[1747763226615,0.80055,2497.3,2497.2,1.3945]
[1747763226811,2.80275,2497.3,2497.2,1.3945]
[1747763228719,2.80275,2497.3,2497.2,2.19508]
[1747763229511,2.80275,2497.3,2497.2,1.3945]
[1747763230318,2.80275,2497.3,2497.0,0.00600516]
[1747763230319,0.80061,2497.1,2497.0,0.00600516]
[1747763230718,2.802975,2497.1,2497.0,0.00600516]
[1747763230919,4.113775,2497.1,2497.0,0.00600516]
[1747763232219,4.113775,2497.1,2497.0,5.16e-06]
[1747763232424,9.113775,2497.1,2497.0,5.16e-06]
[1747763232822,15.756775,2497.1,2497.0,5.16e-06]
[1747763233822,41.765775,2497.1,2497.0,5.16e-06]
[1747763234226,15.756775,2497.1,2497.0,5.16e-06]
[1747763234426,41.765775,2497.1,2497.0,5.16e-06]
[1747763235727,0.80097,2496.0,2495.9,3.8654]
[1747763236225,0.80097,2496.0,2495.9,4.6664]
[1747763236926,0.80095,2496.1,2496.0,0.80094]
[1747763237126,0.80095,2496.1,2496.0,2.14194]
[1747763237530,0.80095,2496.1,2496.0,1.341]
[1747763238221,2.804115,2496.1,2496.0,1.341]
[1747763239625,0.80103,2495.8,2495.7,0.68610516]
[1747763239828,0.80103,2495.8,2495.7,0.00600516]
[1747763240022,0.00600516,2496.0,2495.7,0.00600516]
[1747763240220,0.80103,2495.9,2495.8,0.80102]
[1747763240523,0.80103,2495.9,2495.8,1.48042]
[1747763240729,2.804355,2495.9,2495.8,1.48042]
[1747763241029,2.804355,2495.9,2495.8,2.85102]
[1747763242531,2.804355,2495.9,2495.8,2.05]
[1747763243420,2.804355,2495.9,2495.8,2.85103]
[1747763243620,2.804355,2495.9,2495.8,2.05]
[1747763244227,2.804355,2495.9,2495.8,2.85103]
[1747763244424,0.00600516,2496.0,2495.8,2.05]
[1747763244727,0.801,2495.9,2495.8,2.85102]
[1747763246732,0.80699516,2496.0,2495.9,0.801]
[1747763247034,0.80699516,2496.0,2495.9,2.0781]
[1747763247218,0.80699516,2496.0,2495.9,1.2771]
[1747763247928,0.80699516,2496.0,2495.9,2.0781]
[1747763248129,0.80699516,2496.0,2495.9,1.2771]
[1747763249131,0.80699516,2496.0,2495.9,2.0781]
[1747763250536,0.00600516,2496.0,2495.9,2.0781]
[1747763251930,0.80697516,2496.0,2495.9,14.4651]
[1747763252329,0.80697516,2496.0,2495.9,13.6641]
[1747763254033,2.81022016,2496.0,2495.9,1.2771]
[1747763254334,0.80103,2495.8,2495.7,0.00600516]
[1747763254835,2.804435,2495.8,2495.7,0.00600516]
[1747763255728,7.804435,2495.8,2495.7,0.00600516]
[1747763256234,48.604435,2495.8,2495.7,0.00600516]
[1747763256736,0.80116,2495.4,2495.3,3.2078]
[1747763257137,2.804885,2495.4,2495.3,3.2078]
[1747763257529,4.116685,2495.4,2495.3,3.2078]
[1747763258735,0.80122,2495.2,2495.1,0.00600516]
[1747763259143,2.80511,2495.2,2495.1,0.00600516]
[1747763263137,2.80511,2495.2,2495.1,5.16e-06]
[1747763264039,15.19511,2495.2,2495.1,5.16e-06]
[1747763264342,2.80511,2495.2,2495.1,5.16e-06]
[1747763266137,2.00272,2495.7,2495.1,3.20780516]
[1747763266332,0.6575,2495.9,2495.4,3.2078]
[1747763266536,5.1761872,2496.0,2495.5,1.3034]
[1747763266737,0.80103,2495.8,2495.7,3.2078]
[1747763267241,2.804435,2495.8,2495.7,3.2078]
[1747763268346,0.8011,2495.6,2495.5,1.3034]
[1747763268848,2.804665,2495.6,2495.5,1.3034]
[1747763269054,0.8011,2495.6,2495.5,1.3034]
[1747763271442,0.8011,2495.6,2495.4,3.2078]
[1747763271443,0.80113,2495.5,2495.4,3.2078]
[1747763271642,2.19333,2495.5,2495.4,3.2078]
[1747763271846,4.196975,2495.5,2495.4,3.2078]
[1747763272046,0.80113,2495.5,2495.4,3.2078]
[1747763272247,0.80116,2495.4,2495.3,1.3584]
[1747763273155,0.80116,2495.4,2495.3,1.6789428]
[1747763273640,2.804885,2495.4,2495.3,1.6789428]
[1747763274855,2.804885,2495.4,2495.3,1.3584]
[1747763276558,2.804885,2495.4,2495.3,2.15959]
[1747763276957,2.804885,2495.4,2495.3,1.3584]
[1747763277451,2.804885,2495.4,2495.3,1.67893246]
[1747763282159,2.003725,2495.4,2495.3,2.15959]
[1747763282355,0.80114,2495.5,2495.4,0.80116]
[1747763282656,0.80114,2495.5,2495.4,5.41586]
[1747763283263,0.80114,2495.5,2495.4,5.73638426]
[1747763284466,2.66580204,2495.9,2495.4,4.93522426]
[1747763284667,0.80113,2495.5,2495.4,4.93522426]
[1747763286256,0.80113,2495.5,2495.4,5.73638426]
[1747763286563,0.80113,2495.5,2495.4,4.93522426]
[1747763286764,0.80113,2495.5,2495.4,5.73638426]
[1747763286965,0.80112,2495.6,2495.5,0.80111]
[1747763287163,2.0653872,2496.0,2495.5,0.80111]
[1747763287164,0.6692872,2496.0,2495.9,0.801]
[1747763287363,1.4702572,2496.0,2495.9,15.5918]
[1747763289065,1.4702572,2496.0,2495.9,17.7731]
[1747763289268,1.4702572,2496.0,2495.9,18.09362426]
[1747763289766,0.80697516,2496.0,2495.9,18.09362426]
[1747763291466,0.66328204,2496.5,2496.2,0.80087]
[1747763291672,0.80084,2496.4,2496.3,2.7168]
[1747763292365,0.80084,2496.4,2496.3,3.51767]
[1747763292565,0.80084,2496.4,2496.3,2.7168]
[1747763293169,2.80376501,2496.4,2496.3,2.0544]
[1747763295269,0.6692872,2496.6,2496.3,2.0544]
[1747763295574,0.80677516,2496.6,2496.5,3.2078]
[1747763296976,0.80084,2496.4,2496.3,15.23725]
[1747763297273,0.80084,2496.4,2496.3,14.4364]
[1747763297571,0.80083,2496.5,2496.3,15.55766553]
[1747763297771,0.80083,2496.5,2496.4,0.80084]
[1747763298070,0.80083,2496.5,2496.4,1.4151]
[1747763298273,0.80083,2496.5,2496.4,2.21594]
[1747763298671,0.80083,2496.5,2496.4,1.4151]
[1747763299372,0.80083,2496.5,2496.4,1.73549553]
[1747763300077,2.803675,2496.5,2496.4,0.32039553]
[1747763300275,5.446675,2496.5,2496.4,0.32039553]
[1747763300574,0.80083,2496.5,2496.4,1.73549553]
[1747763301077,0.80083,2496.5,2496.4,1.4151]
[1747763302975,0.80083,2496.5,2496.4,2.1135]
[1747763304079,0.80083,2496.5,2496.4,2.91434]
[1747763304282,0.80083,2496.5,2496.4,2.1135]
[1747763304681,0.80083,2496.5,2496.4,2.91434]
[1747763304869,0.00600516,2496.6,2496.4,2.1135]
[1747763305176,0.00600516,2496.6,2496.5,16.38861]
[1747763305383,0.00600516,2496.6,2496.5,17.68531]
[1747763305679,0.80677516,2496.6,2496.5,4.5045]
[1747763307282,0.00600516,2496.6,2496.5,10.30531]
[1747763307486,0.00600516,2496.6,2496.5,5.30531]
[1747763308487,0.80677516,2496.6,2496.5,5.62566478]
[1747763308787,0.00600516,2496.6,2496.5,5.62566478]
[1747763309888,0.00600516,2496.6,2496.5,5.84131855]
[1747763310392,0.00600516,2496.6,2496.5,10.84131855]
[1747763311595,0.00600516,2496.6,2496.5,10.62566478]
[1747763312193,0.80677516,2496.6,2496.5,5.62566478]
[1747763312489,0.00600516,2496.6,2496.5,5.62566478]
[1747763312990,0.00600516,2496.6,2496.5,5.91408237]
[1747763314084,0.80677516,2496.6,2496.5,5.91408237]
[1747763314583,0.80677516,2496.6,2496.5,5.04182872]
[1747763314795,0.80677516,2496.6,2496.5,17.40882872]
[1747763314995,0.80677516,2496.6,2496.5,18.20963872]
[1747763315489,0.00600516,2496.6,2496.5,18.20963872]
[1747763315692,0.80677516,2496.6,2496.5,18.20963872]
[1747763316295,0.00600516,2496.6,2496.5,18.20963872]
[1747763316798,0.80677516,2496.6,2496.5,18.20963872]
[1747763317196,2.80954016,2496.6,2496.5,17.40882872]
[1747763317400,2.80954016,2496.6,2496.5,16.11212872]
[1747763318095,2.80954016,2496.6,2496.5,3.52815478]
[1747763319795,2.80954016,2496.6,2496.5,4.32896478]
[1747763319998,2.80954016,2496.6,2496.5,0.32035478]
[1747763320597,0.00600516,2496.6,2496.5,4.32896478]
[1747763320798,0.80677516,2496.6,2496.5,4.85665478]
[1747763320999,0.80677516,2496.6,2496.5,18.02446478]
[1747763321202,0.80677516,2496.6,2496.5,18.24143872]
[1747763322193,0.80677516,2496.6,2496.5,18.02446478]
[1747763323195,0.00600516,2496.6,2496.5,18.02446478]
[1747763323401,0.00600516,2496.6,2496.5,18.70016478]
[1747763324803,0.80677516,2496.6,2496.5,18.70016478]
[1747763325304,0.00600516,2496.6,2496.5,18.70016478]
[1747763326203,0.80677516,2496.6,2496.5,18.70016478]
[1747763326596,0.80677516,2496.6,2496.5,18.18777237]
[1747763326802,0.80677516,2496.6,2496.5,17.51207237]
[1747763327191,0.80677516,2496.6,2496.5,3.81657237]
[1747763327395,2.20177516,2496.6,2496.5,16.18357237]
[1747763328405,2.20177516,2496.6,2496.5,16.11299037]
[1747763328701,4.20454016,2496.6,2496.5,16.11299037]
[1747763329195,4.20454016,2496.6,2496.5,12.90519037]
[1747763329502,4.20454016,2496.6,2496.5,16.91380037]
[1747763329503,0.00600516,2496.6,2496.5,16.91380037]
[1747763329894,2.80954016,2496.6,2496.5,16.91380037]
[1747763330402,0.80677516,2496.6,2496.5,16.91380037]
[1747763330605,0.80677516,2496.6,2496.5,16.11299037]
[1747763331195,0.80677516,2496.6,2496.5,17.52899037]
[1747763331901,2.80954016,2496.6,2496.5,12.90519037]
[1747763332090,2.80954016,2496.6,2496.5,0.53819037]
[1747763334001,2.80954016,2496.6,2496.3,1.416]
[1747763334002,2.00877016,2496.6,2496.3,1.416]
[1747763334201,0.80084,2496.4,2496.3,1.416]
[1747763334800,2.80376501,2496.4,2496.3,2.21687]
[1747763335002,2.80376501,2496.4,2496.3,2.89827]
[1747763335400,2.80376501,2496.4,2496.3,2.0974]
[1747763335606,0.80084,2496.4,2496.3,2.89826]
[1747763335807,0.80084,2496.4,2496.3,3.21867763]
[1747763336205,0.80083,2496.5,2496.4,0.80081]
[1747763336405,0.80083,2496.5,2496.4,2.83161]
[1747763337307,0.80083,2496.5,2496.4,3.36986322]
[1747763337602,1.4700872,2496.6,2496.5,0.80081]
[1747763337906,1.4700872,2496.6,2496.5,4.6195]
[1747763338299,1.4700872,2496.6,2496.5,5.42031]
[1747763338706,1.4700872,2496.6,2496.5,4.6195]
[1747763338899,1.4700872,2496.6,2496.5,5.15775322]
[1747763339602,0.80680516,2496.6,2496.5,5.95856322]
[1747763339908,0.00600516,2496.6,2496.5,10.95856322]
[1747763340302,0.00600516,2496.6,2496.5,11.02914522]
[1747763340503,0.00600516,2496.6,2496.5,6.02914522]
[1747763340706,0.00600516,2496.6,2496.5,11.02914522]
[1747763341611,0.66328204,2496.8,2496.7,0.80074]
[1747763341808,0.66328204,2496.8,2496.7,13.16774]
[1747763342207,0.66328204,2496.8,2496.7,13.86764]
[1747763342699,0.80665516,2497.0,2496.9,0.80068]
[1747763342904,0.80665516,2497.0,2496.9,4.00848]
[1747763343313,0.80665516,2497.0,2496.9,16.2502]
[1747763343811,0.80665516,2497.0,2496.9,17.5638]
[1747763344013,0.80665516,2497.0,2496.9,18.10191984]
[1747763344204,0.80665516,2497.0,2496.9,18.90259984]
[1747763345213,0.00600516,2497.0,2496.9,18.90259984]
[1747763346114,0.80665516,2497.0,2496.9,18.90259984]
[1747763346316,0.00600516,2497.0,2496.9,18.90259984]
[1747763346615,0.80665516,2497.0,2496.9,18.68489763]
[1747763347117,0.80665516,2497.0,2496.9,18.68389763]
[1747763347513,0.80665516,2497.0,2496.9,17.88321763]
[1747763347714,0.80665516,2497.0,2496.9,18.68389763]
[1747763347910,0.00600516,2497.0,2496.9,18.68389763]
[1747763349516,0.00600516,2497.0,2496.9,18.90143936]
[1747763352213,0.00600516,2497.0,2496.9,18.97424595]
[1747763353915,0.00600516,2497.0,2496.9,19.11954205]
[1747763355519,0.00600516,2497.0,2496.9,6.76554205]
[1747763355820,0.00600516,2497.0,2496.9,32.63154205]
[1747763356721,0.00600516,2497.0,2496.9,19.11854205]
[1747763357120,0.00600516,2497.0,2496.9,18.68289763]
[1747763358927,0.00600516,2497.0,2496.9,19.11854205]
[1747763359823,5.16e-06,2497.0,2496.9,24.11854205]
[1747763360023,0.80041,2497.8,2497.7,0.80042]
[1747763360329,0.80039,2497.8,2497.7,16.36021]
[1747763360627,4.12729001,2497.8,2497.7,12.352]
[1747763361728,2.12549,2497.8,2497.7,12.352]
[1747763361928,0.80049,2497.5,2497.4,5.38061]
[1747763362122,0.80049,2497.5,2497.4,17.73261]
[1747763362722,4.20363,2497.5,2497.4,3.2078]
[1747763362923,4.86413,2497.5,2497.4,15.5598]
[1747763363122,4.86413,2497.5,2497.4,15.88004707]
[1747763363627,4.86413,2497.5,2497.4,3.52804707]
[1747763364026,4.86413,2497.5,2497.4,3.2078]
[1747763369335,0.80061,2497.1,2497.0,3.93e-06]
[1747763369828,7.802975,2497.1,2497.0,3.93e-06]
[1747763370347,9.215575,2497.1,2497.0,3.93e-06]
[1747763370533,0.80065,2497.0,2496.9,0.2895371]
[1747763370833,0.80077,2496.6,2496.5,12.35800516]
[1747763371228,2.803535,2496.6,2496.5,12.35800516]
[1747763371630,4.212935,2496.6,2496.5,12.35800516]
[1747763372036,4.212935,2496.6,2496.5,12.67840044]
[1747763372729,4.212935,2496.6,2496.5,0.32640044]
[1747763373032,9.212935,2496.6,2496.5,4.4e-07]
[1747763373427,9.212935,2496.6,2496.2,7.54e-06]
[1747763373428,0.80087,2496.3,2496.2,7.54e-06]
[1747763373625,16.34667,2496.3,2496.2,7.54e-06]
[1747763373834,16.34667,2496.3,2495.8,0.57851996]
[1747763373835,0.80097,2496.0,2495.9,7.54e-06]
[1747763374237,2.804215,2496.0,2495.9,7.54e-06]
[1747763374431,0.00600516,2496.2,2496.1,0.80093]
[1747763374633,0.80690516,2496.2,2496.1,15.5458]
[1747763374827,0.80690516,2496.2,2496.1,4.6164]
[1747763375030,2.80999016,2496.2,2496.1,16.9544]
[1747763375641,0.00600516,2496.2,2496.1,17.75533]
[1747763378039,0.00600516,2496.2,2496.1,5.41733]
[1747763378341,0.80690516,2496.2,2496.1,17.75733]
[1747763378546,0.00600516,2496.2,2496.1,17.75733]
[1747763378735,0.80690516,2496.2,2496.1,17.75733]
[1747763378936,0.00600516,2496.2,2496.1,17.75733]
[1747763384842,0.00600516,2496.2,2496.1,31.27333]
[1747763385359,0.00600516,2496.2,2496.1,5.41733]
[1747763385559,0.80074,2496.8,2496.3,2.00215]
[1747763385757,0.80074,2496.8,2496.7,0.80071]
[1747763386159,2.803345,2496.8,2496.7,0.80071]
[1747763386464,0.80062,2497.1,2497.0,0.80065]
[1747763386659,2.803105,2497.1,2497.0,0.80065]
[1747763387157,2.803105,2497.1,2497.0,2.21295]
[1747763387757,2.802985,2497.1,2497.0,14.55295]
[1747763388653,0.67220806,2497.3,2497.0,14.55295]
[1747763388866,0.67220806,2497.3,2497.2,4.00838]
[1747763389264,0.67220806,2497.3,2497.2,5.36118]
[1747763389763,0.00600516,2497.3,2497.2,5.36118]
[1747763390762,0.00600516,2497.3,2497.2,5.68142951]
[1747763394469,0.00600516,2497.3,2497.2,18.01942951]
[1747763396259,0.00600516,2497.3,2497.2,5.68142951]
[1747763396770,0.00600516,2497.3,2497.2,31.53042951]
[1747763397367,0.00600516,2497.3,2497.2,18.01842951]
[1747763397574,5.16e-06,2497.3,2497.2,23.01842951]
[1747763398474,5.16e-06,2497.3,2497.2,10.68142951]
[1747763398670,5.16e-06,2497.3,2497.2,5.68142951]
[1747763398874,5.16e-06,2497.3,2497.2,31.53042951]
[1747763399070,2.80275516,2497.3,2497.2,5.68142951]
[1747763399270,2.80275516,2497.3,2497.2,13.45682951]
[1747763399478,2.80275516,2497.3,2497.2,12.65624951]
[1747763400281,4.09895516,2497.3,2497.2,12.65624951]
[1747763400478,0.80061,2497.1,2497.0,0.44164958]
[1747763400871,7.802975,2497.1,2497.0,0.44164958]
[1747763401175,7.802975,2497.1,2497.0,0.00600516]
[1747763401880,2.802975,2497.1,2497.0,0.00600516]
[1747763402171,2.002365,2497.1,2497.0,0.80665516]
[1747763402580,5.16e-06,2497.3,2497.2,0.80058]
[1747763402771,5.16e-06,2497.3,2497.2,13.13758]
[1747763403074,2.00220516,2497.3,2497.2,13.13758]
[1747763403373,5.16e-06,2497.3,2497.2,13.13758]
[1747763403578,5.16e-06,2497.3,2497.2,0.80058]
[1747763403781,5.16e-06,2497.3,2497.2,13.12358]
[1747763405575,5.16e-06,2497.3,2497.2,0.80058]
[1747763405783,0.80058,2497.2,2497.1,5.34238]
[1747763406081,1.3086,2497.2,2497.1,17.66438]
[1747763406284,5.16e-06,2497.3,2497.2,0.80058]
[1747763406575,5.16e-06,2497.3,2497.2,13.12258]
[1747763407373,5.16e-06,2497.3,2497.2,18.12258]
[1747763409184,1.4073,2498.0,2497.9,0.80036]
[1747763409382,1.4073,2498.0,2497.9,16.33016]
[1747763409584,1.3116,2498.2,2497.9,16.33016]
[1747763409778,4.72046,2498.2,2498.1,0.80029]
[1747763409985,1.4663529,2498.6,2498.5,0.80017]
[1747763410185,4.1376729,2498.6,2498.5,0.80017]
[1747763410487,3.3375229,2498.6,2498.5,0.80017]
[1747763411293,3.3375229,2498.6,2498.5,2.15277]
[1747763411891,0.6662029,2498.6,2498.5,2.15277]
[1747763412290,0.6662029,2498.6,2498.5,2.83557]
[1747763413192,0.006,2498.8,2498.7,0.8001]
[1747763413394,0.006,2498.8,2498.7,16.3279]
[1747763413691,0.006,2498.8,2498.7,4.0079]
[1747763413891,0.006,2498.8,2498.7,16.3279]
[1747763414096,0.006,2498.8,2498.7,16.64796481]
[1747763414892,0.006,2498.8,2498.7,4.32796481]
[1747763415092,0.6386,2499.0,2498.9,0.80004]
[1747763415395,1.3237,2499.4,2499.3,0.79991]
[1747763415594,3.32422,2499.4,2499.3,4.00771]
[1747763416598,1.48485,2499.5,2499.4,0.79988]
[1747763416794,3.97378,2499.5,2499.4,0.79988]
[1747763417697,0.6566,2499.6,2499.5,0.79985]
[1747763417897,0.79988,2499.5,2499.4,13.11686]
[1747763418090,1.2883,2499.5,2499.4,13.11686]
[1747763418296,3.28874,2499.5,2499.4,13.11686]
[1747763418497,3.28874,2499.5,2499.4,14.48786]
[1747763418689,3.28874,2499.5,2499.4,2.17086]
[1747763418996,3.28874,2499.5,2499.3,3.2078]
[1747763418997,0.79988,2499.4,2499.3,16.32469]
[1747763419193,0.79997,2499.1,2499.0,3.2078]
[1747763419498,0.80007,2498.9,2498.8,0.80005]
[1747763419998,0.80013,2498.6,2498.5,13.40669123]
[1747763420187,0.80013,2498.6,2498.5,13.40569123]
[1747763420384,2.0666,2498.8,2498.7,0.8001]
[1747763420599,4.06768,2498.8,2498.6,4.00792]
[1747763420786,0.8001,2498.7,2498.6,3.2078]
[1747763420993,0.80013,2498.6,2498.5,0.80017]
[1747763421192,0.8002,2498.4,2498.3,4.01400516]
[1747763421392,2.18469,2498.5,2498.4,0.8002]
[1747763421698,0.6821,2498.8,2498.7,0.8001]
[1747763421891,0.6821,2498.8,2498.7,4.0079]
[1747763422086,2.00100001,2498.8,2498.7,4.0079]
[1747763422291,0.79997,2499.2,2499.1,0.79996]
[1747763422593,0.79997,2499.2,2499.1,0.79997]
[1747763422891,2.80065,2499.2,2499.1,0.79997]
[1747763423502,2.00068,2499.2,2499.1,0.79997]
[1747763423704,2.80062,2499.2,2499.1,0.79997]
[1747763423898,3.39008,2499.2,2499.1,0.79997]
[1747763424295,1.3894,2499.4,2499.3,0.79991]
[1747763424502,3.39,2499.4,2499.3,4.00771]
[1747763424802,4.1899,2499.4,2499.3,0.79991]
[1747763425001,0.79994,2499.3,2499.2,0.79993]
[1747763425202,2.18934,2499.3,2499.2,0.79993]
[1747763425403,0.79997,2499.1,2499.0,3.2078]
[1747763425596,0.80004,2498.9,2498.8,13.43511062]
[1747763425901,0.79993,2499.3,2499.2,0.79991]
[1747763426105,1.3022,2499.3,2499.2,0.79991]
[1747763426308,3.3028,2499.3,2499.2,0.79991]
[1747763426608,4.10271,2499.3,2499.2,2.08041]
[1747763426806,4.10271,2499.3,2499.2,14.39541]
[1747763427205,3.3028,2499.3,2499.2,14.39541]
[1747763427707,4.10271,2499.3,2499.2,14.39541]
[1747763428103,3.3028,2499.3,2499.2,14.39541]
[1747763428307,4.10271,2499.3,2499.2,14.39541]
[1747763428705,4.10271,2499.3,2499.2,15.03551]
[1747763429317,3.3028,2499.3,2499.2,15.03551]
[1747763429508,4.10271,2499.3,2499.2,15.03551]
[1747763430619,2.0006,2499.3,2499.2,15.03551]
[1747763430805,0.6411,2499.8,2499.4,0.79984]
[1747763431005,0.79986,2499.5,2499.4,4.00764]
[1747763431406,2.8003,2499.5,2499.4,4.00764]
[1747763431608,2.8003,2499.5,2499.4,3.2078]
[1747763432010,9.0001,2499.5,2499.1,4.00777]
[1747763432316,0.79994,2499.2,2499.1,16.32177]
[1747763432812,2.80062,2499.2,2499.1,16.32177]
[1747763433017,2.00068,2499.2,2499.1,16.32177]
[1747763433515,0.79985,2499.6,2499.5,0.79983]
[1747763433718,0.79987,2499.5,2499.4,0.79985]
[1747763434121,2.80031,2499.5,2499.4,0.79985]
[1747763434827,0.79988,2499.4,2499.3,2.13269]
[1747763435327,2.00052,2499.4,2499.3,2.13269]
[1747763435527,2.8004,2499.4,2499.3,2.13269]
[1747763436028,0.79991,2499.3,2499.2,0.6717]
[1747763436230,2.13701,2499.3,2499.2,1.47164]
[1747763436529,0.79985,2499.6,2499.5,0.79983]
[1747763436825,4.13743,2499.6,2499.5,0.79983]
[1747763437028,3.33758,2499.6,2499.2,2.39282448]
[1747763437228,0.79991,2499.4,2499.3,2.20099]
[1747763437726,2.80043,2499.4,2499.3,2.20099]
[1747763438027,2.80043,2499.4,2499.3,1.4011]
[1747763438330,2.80043,2499.4,2499.3,2.52103448]
[1747763438826,2.00052,2499.4,2499.3,2.52103448]
[1747763439930,2.8004,2499.4,2499.3,0.32002448]
[1747763440419,2.8004,2499.4,2499.3,1.11993448]
[1747763440620,4.1212,2499.4,2499.3,1.11993448]
[1747763440822,3.32132,2499.4,2499.3,2.47593448]
[1747763441032,2.00052,2499.4,2499.3,2.47593448]
[1747763441332,2.00052,2499.4,2499.3,2.69192344]
[1747763441825,2.8004,2499.4,2499.3,2.69192344]